[Event "Early-Titled-Tuesday-Blitz-January-16-2024"]
[Site "Chess.com"]
[Date "2024.01.16"]
[Round "7"]
[White "Andrey_Klymchuk"]
[Black "CaspiIsrael"]
[Result "0-1"]
[WhiteElo "2790"]
[BlackElo "2655"]
[TimeControl "180+1"]
[EndTime "9:22:36 PST"]
[Termination "CaspiIsrael won by resignation"]

1. e4 {[%clk 0:03:00.9]} 1... e5 {[%clk 0:02:57.5]} 2. Nf3 {[%clk 0:03:00.7]}
2... Nf6 {[%clk 0:02:57.1]} 3. Nxe5 {[%clk 0:03:00.6]} 3... d6 {[%clk
0:02:57.1]} 4. Nf3 {[%clk 0:03:00.7]} 4... Nxe4 {[%clk 0:02:57.5]} 5. Nc3 {[%clk
0:03:01.2]} 5... Nxc3 {[%clk 0:02:56.9]} 6. dxc3 {[%clk 0:03:02.1]} 6... Be7
{[%clk 0:02:57.2]} 7. Be3 {[%clk 0:03:02]} 7... O-O {[%clk 0:02:57.4]} 8. Qd2
{[%clk 0:03:02.3]} 8... Nd7 {[%clk 0:02:58]} 9. O-O-O {[%clk 0:03:02.3]} 9... c6
{[%clk 0:02:57.8]} 10. h4 {[%clk 0:03:00.9]} 10... d5 {[%clk 0:02:51.8]} 11. Kb1
{[%clk 0:02:53.3]} 11... Re8 {[%clk 0:02:51.3]} 12. c4 {[%clk 0:02:52.3]} 12...
Nb6 {[%clk 0:02:49.2]} 13. cxd5 {[%clk 0:02:44]} 13... Nxd5 {[%clk 0:02:46.6]}
14. Bd4 {[%clk 0:02:42.9]} 14... Bg4 {[%clk 0:02:43.6]} 15. Bc4 {[%clk
0:02:39.4]} 15... Bf6 {[%clk 0:02:28.3]} 16. Bxf6 {[%clk 0:02:32.4]} 16... Qxf6
{[%clk 0:02:27.6]} 17. Bxd5 {[%clk 0:02:25]} 17... cxd5 {[%clk 0:02:23.2]} 18.
Qd4 {[%clk 0:02:21.8]} 18... Qxd4 {[%clk 0:02:14]} 19. Rxd4 {[%clk 0:02:21]}
19... Bxf3 {[%clk 0:02:14.3]} 20. gxf3 {[%clk 0:02:21.8]} 20... Re2 {[%clk
0:02:14.6]} 21. Rf1 {[%clk 0:02:19.1]} 21... Rae8 {[%clk 0:02:14.3]} 22. Kc1
{[%clk 0:02:13.6]} 22... R2e5 {[%clk 0:02:04.2]} 23. Rfd1 {[%clk 0:02:12.1]}
23... Rh5 {[%clk 0:02:01.1]} 24. a4 {[%clk 0:02:07.6]} 24... Kf8 {[%clk
0:01:59.7]} 25. a5 {[%clk 0:02:03.8]} 25... a6 {[%clk 0:01:58.4]} 26. Rb4 {[%clk
0:02:01.9]} 26... Re7 {[%clk 0:01:57.5]} 27. Rd3 {[%clk 0:02:01.5]} 27... Ke8
{[%clk 0:01:31.4]} 28. Re3 {[%clk 0:01:59.6]} 28... Re6 {[%clk 0:01:15.1]} 29.
Rxe6+ {[%clk 0:01:55.4]} 29... fxe6 {[%clk 0:01:15.4]} 30. Rxb7 {[%clk 0:01:56]}
30... Rxh4 {[%clk 0:01:15.8]} 31. Rb6 {[%clk 0:01:51.2]} 31... Ke7 {[%clk
0:01:13.6]} 32. Rxa6 {[%clk 0:01:51.1]} 32... h5 {[%clk 0:01:08.4]} 33. Ra7+
{[%clk 0:01:49.8]} 33... Kf6 {[%clk 0:01:08.5]} 34. b3 {[%clk 0:01:43.8]} 34...
Rb4 {[%clk 0:01:01.7]} 35. Kb2 {[%clk 0:01:39.1]} 35... h4 {[%clk 0:01:01.6]}
36. Ra8 {[%clk 0:01:39.2]} 36... Rb5 {[%clk 0:00:55.9]} 37. Ka3 {[%clk
0:01:36.3]} 37... g5 {[%clk 0:00:54.6]} 38. b4 {[%clk 0:01:33.2]} 38... Kg7
{[%clk 0:00:53.7]} 39. Re8 {[%clk 0:01:07.7]} 39... Kf7 {[%clk 0:00:45.4]} 40.
Rh8 {[%clk 0:01:03.9]} 40... Kg7 {[%clk 0:00:45.5]} 41. Re8 {[%clk 0:00:28.6]}
41... Kf7 {[%clk 0:00:45.3]} 42. Rc8 {[%clk 0:00:22.8]} 42... Kg7 {[%clk
0:00:37.4]} 43. Ka4 {[%clk 0:00:20.2]} 43... h3 {[%clk 0:00:33.1]} 44. Rc7+
{[%clk 0:00:20.2]} 44... Kg6 {[%clk 0:00:30.4]} 45. Rc8 {[%clk 0:00:20.6]} 45...
Rb7 {[%clk 0:00:28.2]} 46. Rh8 {[%clk 0:00:18.8]} 46... Rh7 {[%clk 0:00:27.2]}
47. Rg8+ {[%clk 0:00:18.3]} 47... Kf6 {[%clk 0:00:24]} 48. Rf8+ {[%clk
0:00:17.6]} 48... Ke5 {[%clk 0:00:21.2]} 49. f4+ {[%clk 0:00:17.3]} 49... gxf4
{[%clk 0:00:20.1]} 50. Rf7 {[%clk 0:00:15.7]} 50... Rxf7 {[%clk 0:00:19.1]} 0-1

[Event "Early-Titled-Tuesday-Blitz-January-16-2024"]
[Site "Chess.com"]
[Date "2024.01.16"]
[Round "7"]
[White "RobertoJBM"]
[Black "Nouali_Mohamed"]
[Result "1-0"]
[WhiteElo "2795"]
[BlackElo "2590"]
[TimeControl "180+1"]
[EndTime "9:22:38 PST"]
[Termination "RobertoJBM won on time"]

1. d4 {[%clk 0:02:59.3]} 1... Nf6 {[%clk 0:02:59.1]} 2. Nf3 {[%clk 0:02:59.3]}
2... g6 {[%clk 0:02:59.5]} 3. e3 {[%clk 0:03:00.2]} 3... Bg7 {[%clk 0:03:00]} 4.
Be2 {[%clk 0:03:00.9]} 4... O-O {[%clk 0:03:00.5]} 5. O-O {[%clk 0:03:01.8]}
5... d6 {[%clk 0:03:01.1]} 6. c4 {[%clk 0:03:01.8]} 6... Nc6 {[%clk 0:02:59.8]}
7. d5 {[%clk 0:03:01.9]} 7... Nb8 {[%clk 0:02:58.1]} 8. Nc3 {[%clk 0:03:02.5]}
8... c5 {[%clk 0:02:48.6]} 9. e4 {[%clk 0:03:01.7]} 9... Bg4 {[%clk 0:02:47.6]}
10. Ne1 {[%clk 0:02:56.7]} 10... Bxe2 {[%clk 0:02:46.5]} 11. Qxe2 {[%clk
0:02:57.6]} 11... a6 {[%clk 0:02:34.9]} 12. Bd2 {[%clk 0:02:54.6]} 12... Nbd7
{[%clk 0:02:31.6]} 13. a4 {[%clk 0:02:54.1]} 13... Rb8 {[%clk 0:02:30.6]} 14.
Nd3 {[%clk 0:02:48.5]} 14... Ne8 {[%clk 0:02:19.3]} 15. f4 {[%clk 0:02:43.3]}
15... Nc7 {[%clk 0:02:18.8]} 16. e5 {[%clk 0:02:38.9]} 16... b5 {[%clk
0:02:14.9]} 17. axb5 {[%clk 0:02:37.8]} 17... axb5 {[%clk 0:02:15.8]} 18. b3
{[%clk 0:02:37.1]} 18... bxc4 {[%clk 0:02:12.4]} 19. bxc4 {[%clk 0:02:38]} 19...
Nb6 {[%clk 0:01:58]} 20. Qe4 {[%clk 0:02:26.9]} 20... f5 {[%clk 0:01:46.1]} 21.
exf6 {[%clk 0:02:26.6]} 21... exf6 {[%clk 0:01:43.5]} 22. f5 {[%clk 0:02:25.1]}
22... Re8 {[%clk 0:01:37]} 23. Qg4 {[%clk 0:02:23.6]} 23... g5 {[%clk
0:01:30.7]} 24. Rae1 {[%clk 0:02:08.8]} 24... h5 {[%clk 0:01:16.8]} 25. Qxh5
{[%clk 0:02:08.7]} 25... Nxc4 {[%clk 0:01:16.5]} 26. Qd1 {[%clk 0:01:27.8]}
26... Qd7 {[%clk 0:00:55.1]} 27. Re6 {[%clk 0:01:23.1]} 27... Rxe6 {[%clk
0:00:37.4]} 28. fxe6 {[%clk 0:01:23.3]} 28... Qe8 {[%clk 0:00:36.6]} 29. Bc1
{[%clk 0:01:06.5]} 29... Qg6 {[%clk 0:00:33]} 30. g4 {[%clk 0:00:47.7]} 30... f5
{[%clk 0:00:23.5]} 31. gxf5 {[%clk 0:00:47.5]} 31... Bd4+ {[%clk 0:00:23.8]} 32.
Kh1 {[%clk 0:00:43.8]} 32... Qh7 {[%clk 0:00:18.6]} 33. Ne4 {[%clk 0:00:43.2]}
33... Nxd5 {[%clk 0:00:13.4]} 34. Nxg5 {[%clk 0:00:27.4]} 34... Qh4 {[%clk
0:00:10.9]} 35. Qf3 {[%clk 0:00:26.1]} 35... Nf6 {[%clk 0:00:05.4]} 36. Bf4
{[%clk 0:00:17.6]} 36... Rb3 {[%clk 0:00:05]} 37. e7 {[%clk 0:00:14.9]} 37...
Ng4 {[%clk 0:00:02.6]} 38. e8=Q+ {[%clk 0:00:12.2]} 1-0

[Event "Early-Titled-Tuesday-Blitz-January-16-2024"]
[Site "Chess.com"]
[Date "2024.01.16"]
[Round "7"]
[White "BardArtem"]
[Black "profedechess93"]
[Result "1-0"]
[WhiteElo "2798"]
[BlackElo "2639"]
[TimeControl "180+1"]
[EndTime "9:22:40 PST"]
[Termination "BardArtem won by checkmate"]

1. e4 {[%clk 0:03:00.9]} 1... e6 {[%clk 0:03:00.1]} 2. d4 {[%clk 0:03:00]} 2...
d5 {[%clk 0:03:00.7]} 3. Nc3 {[%clk 0:03:00.2]} 3... Nf6 {[%clk 0:03:00.7]} 4.
exd5 {[%clk 0:02:59]} 4... exd5 {[%clk 0:03:00.5]} 5. Bg5 {[%clk 0:02:59.6]}
5... Bb4 {[%clk 0:03:00.6]} 6. Qe2+ {[%clk 0:02:49]} 6... Be6 {[%clk 0:03:00.1]}
7. Qb5+ {[%clk 0:02:49]} 7... Nc6 {[%clk 0:02:58.4]} 8. Qxb7 {[%clk 0:02:49]}
8... Nxd4 {[%clk 0:02:20.6]} 9. Bb5+ {[%clk 0:02:12.9]} 9... Kf8 {[%clk
0:02:15.8]} 10. Bxf6 {[%clk 0:02:12.2]} 10... gxf6 {[%clk 0:02:14.9]} 11. Bd3
{[%clk 0:01:35.7]} 11... c5 {[%clk 0:02:00.7]} 12. a3 {[%clk 0:01:10.4]} 12...
Ba5 {[%clk 0:01:59.2]} 13. b4 {[%clk 0:00:52.5]} 13... Rb8 {[%clk 0:01:56.3]}
14. Qxa7 {[%clk 0:00:52]} 14... cxb4 {[%clk 0:01:55.5]} 15. Qxd4 {[%clk
0:00:50.3]} 15... bxc3 {[%clk 0:01:51.5]} 16. Nf3 {[%clk 0:00:50]} 16... Rg8
{[%clk 0:01:36.5]} 17. O-O {[%clk 0:00:39.1]} 17... Qb6 {[%clk 0:01:12.6]} 18.
Qh4 {[%clk 0:00:27.4]} 18... Rg4 {[%clk 0:01:07.7]} 19. Qxf6 {[%clk 0:00:23.1]}
19... Rxg2+ {[%clk 0:01:07.2]} 20. Kh1 {[%clk 0:00:21]} 20... Bh3 {[%clk
0:00:50]} 21. Qh8+ {[%clk 0:00:13.9]} 21... Ke7 {[%clk 0:00:50.2]} 22. Qe5+
{[%clk 0:00:14.5]} 22... Kf8 {[%clk 0:00:32.8]} 23. Bf5 {[%clk 0:00:05.5]} 23...
Re8 {[%clk 0:00:27.8]} 24. Qf4 {[%clk 0:00:03.4]} 24... Bxf5 {[%clk 0:00:21.5]}
25. Qxf5 {[%clk 0:00:04.3]} 25... Rxf2 {[%clk 0:00:12.1]} 26. Qxh7 {[%clk
0:00:04.6]} 26... Qe3 {[%clk 0:00:09]} 27. Qh8+ {[%clk 0:00:04.3]} 27... Ke7
{[%clk 0:00:09.4]} 28. Qh4+ {[%clk 0:00:05.2]} 28... f6 {[%clk 0:00:08]} 29.
Qxf2 {[%clk 0:00:04.6]} 29... Qxf2 {[%clk 0:00:08.2]} 30. Rxf2 {[%clk
0:00:05.5]} 30... Kd6 {[%clk 0:00:08.7]} 31. Rb1 {[%clk 0:00:04.7]} 31... Re4
{[%clk 0:00:07.5]} 32. Rb5 {[%clk 0:00:04.4]} 32... Bd8 {[%clk 0:00:06.1]} 33.
Kg2 {[%clk 0:00:04.8]} 33... Kc6 {[%clk 0:00:06.5]} 34. Rb3 {[%clk 0:00:04.8]}
34... d4 {[%clk 0:00:06.1]} 35. a4 {[%clk 0:00:04.1]} 35... Rg4+ {[%clk
0:00:06.3]} 36. Kf1 {[%clk 0:00:04.3]} 36... Bb6 {[%clk 0:00:05.3]} 37. Ne1
{[%clk 0:00:04.6]} 37... Re4 {[%clk 0:00:05.1]} 38. Nd3 {[%clk 0:00:04.9]} 38...
Bc7 {[%clk 0:00:05.2]} 39. Rxf6+ {[%clk 0:00:05.2]} 39... Kd5 {[%clk 0:00:05.3]}
40. Rb5+ {[%clk 0:00:05.1]} 40... Kc4 {[%clk 0:00:03.5]} 41. Rc5# {[%clk
0:00:06]} 1-0

[Event "Early-Titled-Tuesday-Blitz-January-16-2024"]
[Site "Chess.com"]
[Date "2024.01.16"]
[Round "7"]
[White "Kostukov_Alex"]
[Black "FM_VS99"]
[Result "0-1"]
[WhiteElo "2309"]
[BlackElo "2501"]
[TimeControl "180+1"]
[EndTime "9:22:40 PST"]
[Termination "FM_VS99 won on time"]

1. g3 {[%clk 0:03:00.3]} 1... Nf6 {[%clk 0:03:00]} 2. Bg2 {[%clk 0:03:00]} 2...
g6 {[%clk 0:03:00.7]} 3. c4 {[%clk 0:03:00.2]} 3... Bg7 {[%clk 0:03:01.2]} 4.
Nf3 {[%clk 0:03:00.9]} 4... O-O {[%clk 0:03:01.7]} 5. O-O {[%clk 0:03:01.2]}
5... c5 {[%clk 0:03:00.2]} 6. d4 {[%clk 0:03:01.6]} 6... d5 {[%clk 0:02:59]} 7.
dxc5 {[%clk 0:02:58.3]} 7... Na6 {[%clk 0:02:58.8]} 8. cxd5 {[%clk 0:02:55.6]}
8... Qxd5 {[%clk 0:02:50.5]} 9. Be3 {[%clk 0:02:44.8]} 9... Qxd1 {[%clk
0:02:40.1]} 10. Rxd1 {[%clk 0:02:43.9]} 10... Ne4 {[%clk 0:02:40.8]} 11. Nc3
{[%clk 0:02:28.9]} 11... Bxc3 {[%clk 0:02:24.3]} 12. bxc3 {[%clk 0:02:29.8]}
12... Nxc3 {[%clk 0:02:24.9]} 13. Re1 {[%clk 0:02:23.9]} 13... Be6 {[%clk
0:02:23]} 14. Nd4 {[%clk 0:02:07.2]} 14... Bd5 {[%clk 0:02:22.6]} 15. Bh3 {[%clk
0:02:01.6]} 15... Nxc5 {[%clk 0:02:16.7]} 16. Rac1 {[%clk 0:01:56.9]} 16... N5a4
{[%clk 0:02:14.4]} 17. a3 {[%clk 0:01:50.2]} 17... e6 {[%clk 0:02:11.4]} 18. Bh6
{[%clk 0:01:38.2]} 18... Rfc8 {[%clk 0:02:09.8]} 19. f3 {[%clk 0:01:36.8]} 19...
Rc4 {[%clk 0:01:55]} 20. Nc2 {[%clk 0:01:31.2]} 20... b6 {[%clk 0:01:33.4]} 21.
e4 {[%clk 0:01:18.6]} 21... Bb7 {[%clk 0:01:32.6]} 22. Bf1 {[%clk 0:01:18.9]}
22... Rcc8 {[%clk 0:01:15.9]} 23. Ne3 {[%clk 0:01:12.9]} 23... b5 {[%clk
0:01:09.4]} 24. Ng4 {[%clk 0:01:04.1]} 24... a5 {[%clk 0:00:51.9]} 25. Nf6+
{[%clk 0:01:03.9]} 25... Kh8 {[%clk 0:00:52.1]} 26. h4 {[%clk 0:00:59.2]} 26...
b4 {[%clk 0:00:51.1]} 27. h5 {[%clk 0:00:51.5]} 27... gxh5 {[%clk 0:00:46.2]}
28. Kf2 {[%clk 0:00:44.3]} 28... b3 {[%clk 0:00:44.7]} 29. Bf4 {[%clk 0:00:14]}
29... b2 {[%clk 0:00:10.6]} 30. Rb1 {[%clk 0:00:11.7]} 30... Nxb1 {[%clk
0:00:08.3]} 31. Rxb1 {[%clk 0:00:12.6]} 31... Rc2+ {[%clk 0:00:03.9]} 32. Ke3
{[%clk 0:00:12.9]} 32... Kg7 {[%clk 0:00:03.6]} 33. Be5 {[%clk 0:00:12.7]} 33...
Kf8 {[%clk 0:00:04.2]} 34. Bb5 {[%clk 0:00:04.4]} 34... Rc1 {[%clk 0:00:03]} 0-1

[Event "Early-Titled-Tuesday-Blitz-January-16-2024"]
[Site "Chess.com"]
[Date "2024.01.16"]
[Round "7"]
[White "GMKrikor"]
[Black "Aguiar94"]
[Result "1-0"]
[WhiteElo "2745"]
[BlackElo "2526"]
[TimeControl "180+1"]
[EndTime "9:22:41 PST"]
[Termination "GMKrikor won on time"]

1. Nf3 {[%clk 0:03:00.9]} 1... d5 {[%clk 0:02:50.1]} 2. c4 {[%clk 0:03:00.9]}
2... d4 {[%clk 0:02:49.6]} 3. b4 {[%clk 0:03:00.4]} 3... a5 {[%clk 0:02:49.2]}
4. b5 {[%clk 0:02:59.9]} 4... c5 {[%clk 0:02:48.8]} 5. bxc6 {[%clk 0:02:56.5]}
5... Nxc6 {[%clk 0:02:48.3]} 6. d3 {[%clk 0:02:55.7]} 6... Nf6 {[%clk
0:02:45.4]} 7. g3 {[%clk 0:02:56]} 7... g6 {[%clk 0:02:45.8]} 8. Bg2 {[%clk
0:02:56.1]} 8... Bg7 {[%clk 0:02:46.5]} 9. O-O {[%clk 0:02:56.8]} 9... O-O
{[%clk 0:02:47.1]} 10. Na3 {[%clk 0:02:55.8]} 10... h6 {[%clk 0:02:43.1]} 11.
Nb5 {[%clk 0:02:52.6]} 11... Re8 {[%clk 0:02:33.6]} 12. Rb1 {[%clk 0:02:50.6]}
12... e5 {[%clk 0:02:19.9]} 13. Nd2 {[%clk 0:02:50.5]} 13... e4 {[%clk
0:02:20.3]} 14. Nxe4 {[%clk 0:02:44.6]} 14... Nxe4 {[%clk 0:02:20.5]} 15. Bxe4
{[%clk 0:02:40.2]} 15... Rxe4 {[%clk 0:02:09.5]} 16. dxe4 {[%clk 0:02:41.1]}
16... Bh3 {[%clk 0:02:09.7]} 17. Re1 {[%clk 0:02:41.6]} 17... Qe7 {[%clk
0:02:07.5]} 18. f3 {[%clk 0:02:35.7]} 18... Rd8 {[%clk 0:02:06.4]} 19. Ba3
{[%clk 0:02:19.1]} 19... Qe6 {[%clk 0:02:00.5]} 20. Nc7 {[%clk 0:02:05.7]} 20...
Qxc4 {[%clk 0:01:55.1]} 21. Nd5 {[%clk 0:02:04.6]} 21... Rxd5 {[%clk 0:01:07]}
22. exd5 {[%clk 0:01:59.5]} 22... Qxd5 {[%clk 0:01:07.9]} 23. Qd3 {[%clk
0:01:28.6]} 23... Ne5 {[%clk 0:01:03.5]} 24. Qe4 {[%clk 0:01:01.1]} 24... Qxa2
{[%clk 0:00:53.6]} 25. Bc5 {[%clk 0:00:47.2]} 25... Bf5 {[%clk 0:00:18.9]} 26.
Qxb7 {[%clk 0:00:36.2]} 26... Bxb1 {[%clk 0:00:19.4]} 27. Qxb1 {[%clk
0:00:34.3]} 27... Qd5 {[%clk 0:00:18.9]} 28. Qb8+ {[%clk 0:00:27.6]} 28... Kh7
{[%clk 0:00:18.6]} 29. Qd6 {[%clk 0:00:28]} 29... Qc4 {[%clk 0:00:04.6]} 30.
Bxd4 {[%clk 0:00:07.8]} 30... Nxf3+ {[%clk 0:00:03.9]} 31. exf3 {[%clk
0:00:08.7]} 31... Bxd4+ {[%clk 0:00:04.5]} 32. Kh1 {[%clk 0:00:09]} 32... Qd3
{[%clk 0:00:04.3]} 33. Qd5 {[%clk 0:00:05.6]} 33... Kg7 {[%clk 0:00:04.2]} 34.
Qe4 {[%clk 0:00:05.2]} 34... Qd2 {[%clk 0:00:03.4]} 35. Qe2 {[%clk 0:00:04]} 1-0

[Event "Early-Titled-Tuesday-Blitz-January-16-2024"]
[Site "Chess.com"]
[Date "2024.01.16"]
[Round "7"]
[White "Louis-Paulsen-Fan"]
[Black "whitemirrorninja"]
[Result "0-1"]
[WhiteElo "2315"]
[BlackElo "2494"]
[TimeControl "180+1"]
[EndTime "9:22:42 PST"]
[Termination "whitemirrorninja won by checkmate"]

1. d4 {[%clk 0:03:00.9]} 1... c5 {[%clk 0:02:58.7]} 2. d5 {[%clk 0:02:58.2]}
2... e5 {[%clk 0:02:58.4]} 3. c4 {[%clk 0:02:57.6]} 3... d6 {[%clk 0:02:58.9]}
4. Nc3 {[%clk 0:02:57.9]} 4... Be7 {[%clk 0:02:59.3]} 5. e4 {[%clk 0:02:57]}
5... h6 {[%clk 0:02:59.6]} 6. g3 {[%clk 0:02:56.8]} 6... Bg5 {[%clk 0:02:59.9]}
7. Bg2 {[%clk 0:02:56.9]} 7... Bxc1 {[%clk 0:02:59.2]} 8. Rxc1 {[%clk
0:02:57.6]} 8... Ne7 {[%clk 0:02:59.3]} 9. Nh3 {[%clk 0:02:57.2]} 9... O-O
{[%clk 0:02:59.2]} 10. O-O {[%clk 0:02:57.3]} 10... f5 {[%clk 0:02:59.3]} 11. f4
{[%clk 0:02:55.3]} 11... fxe4 {[%clk 0:02:55.8]} 12. fxe5 {[%clk 0:02:45.4]}
12... Rxf1+ {[%clk 0:02:53.7]} 13. Qxf1 {[%clk 0:02:42.5]} 13... dxe5 {[%clk
0:02:51.2]} 14. Bxe4 {[%clk 0:02:29.1]} 14... Qf8 {[%clk 0:02:08.3]} 15. Qg2
{[%clk 0:02:17.2]} 15... Bxh3 {[%clk 0:02:04.9]} 16. Qxh3 {[%clk 0:02:14.3]}
16... Qc8 {[%clk 0:02:02.2]} 17. Qxc8+ {[%clk 0:01:45.7]} 17... Nxc8 {[%clk
0:02:01.1]} 18. Nb5 {[%clk 0:01:45.9]} 18... Nd7 {[%clk 0:01:55.2]} 19. d6
{[%clk 0:01:38.2]} 19... Rb8 {[%clk 0:01:44.6]} 20. Bd5+ {[%clk 0:01:32.7]}
20... Kf8 {[%clk 0:01:32.7]} 21. Rf1+ {[%clk 0:01:29.3]} 21... Nf6 {[%clk
0:01:28.4]} 22. d7 {[%clk 0:01:02.7]} 22... Nb6 {[%clk 0:01:25.6]} 23. Bxb7
{[%clk 0:00:49.5]} 23... Nxd7 {[%clk 0:01:21.7]} 24. Bc6 {[%clk 0:00:49.8]}
24... Ke7 {[%clk 0:01:18.6]} 25. b3 {[%clk 0:00:46.8]} 25... a6 {[%clk 0:01:18]}
26. Nc7 {[%clk 0:00:38.6]} 26... Kd6 {[%clk 0:00:56]} 27. Bxd7 {[%clk
0:00:37.7]} 27... Kxc7 {[%clk 0:00:55.3]} 28. Be6 {[%clk 0:00:34.8]} 28... Rd8
{[%clk 0:00:52]} 29. Re1 {[%clk 0:00:33.5]} 29... e4 {[%clk 0:00:51.5]} 30. Bf5
{[%clk 0:00:31.5]} 30... Rd4 {[%clk 0:00:48.9]} 31. Kf2 {[%clk 0:00:27.6]} 31...
Kd6 {[%clk 0:00:49.6]} 32. g4 {[%clk 0:00:25]} 32... Ke5 {[%clk 0:00:49.6]} 33.
Re2 {[%clk 0:00:23.4]} 33... Kf4 {[%clk 0:00:47.2]} 34. h3 {[%clk 0:00:23.9]}
34... Rd3 {[%clk 0:00:41.9]} 35. Bc8 {[%clk 0:00:20.3]} 35... Rxh3 {[%clk
0:00:38.9]} 36. Bxa6 {[%clk 0:00:19.4]} 36... Nxg4+ {[%clk 0:00:33.9]} 37. Kg1
{[%clk 0:00:18.8]} 37... Rg3+ {[%clk 0:00:27.6]} 38. Kf1 {[%clk 0:00:16.7]}
38... Kf3 {[%clk 0:00:19.2]} 39. Rb2 {[%clk 0:00:06.8]} 39... Rh3 {[%clk
0:00:15.8]} 40. Kg1 {[%clk 0:00:06.5]} 40... Rg3+ {[%clk 0:00:14.6]} 41. Kf1
{[%clk 0:00:06]} 41... Ne3+ {[%clk 0:00:12.4]} 42. Ke1 {[%clk 0:00:03.3]} 42...
Rg1+ {[%clk 0:00:12.2]} 43. Kd2 {[%clk 0:00:03.7]} 43... Rd1+ {[%clk 0:00:09]}
44. Kc3 {[%clk 0:00:02.7]} 44... Rd3# {[%clk 0:00:09.9]} 0-1

[Event "Early-Titled-Tuesday-Blitz-January-16-2024"]
[Site "Chess.com"]
[Date "2024.01.16"]
[Round "7"]
[White "Seochesspie"]
[Black "Alexei_Gubajdullin"]
[Result "1-0"]
[WhiteElo "2809"]
[BlackElo "2641"]
[TimeControl "180+1"]
[EndTime "9:22:43 PST"]
[Termination "Seochesspie won on time"]

1. e4 {[%clk 0:03:00.9]} 1... e5 {[%clk 0:02:59.1]} 2. Nf3 {[%clk 0:03:01.1]}
2... Nf6 {[%clk 0:02:59.1]} 3. d4 {[%clk 0:02:59.5]} 3... Nxe4 {[%clk
0:02:58.5]} 4. Bd3 {[%clk 0:02:59.4]} 4... Nc6 {[%clk 0:02:49.5]} 5. Nxe5 {[%clk
0:02:56.3]} 5... Nxe5 {[%clk 0:02:46.2]} 6. dxe5 {[%clk 0:02:57.2]} 6... d5
{[%clk 0:02:43.7]} 7. O-O {[%clk 0:02:47.9]} 7... Nc5 {[%clk 0:02:41.4]} 8. Be3
{[%clk 0:02:46.2]} 8... Nxd3 {[%clk 0:02:38.6]} 9. Qxd3 {[%clk 0:02:45.9]} 9...
g6 {[%clk 0:02:34.9]} 10. Nc3 {[%clk 0:02:41]} 10... c6 {[%clk 0:02:34.6]} 11.
f4 {[%clk 0:02:40.4]} 11... Bf5 {[%clk 0:02:32.4]} 12. Qd2 {[%clk 0:02:39.9]}
12... Bb4 {[%clk 0:02:14.1]} 13. a3 {[%clk 0:02:38.5]} 13... Be7 {[%clk
0:02:03]} 14. Ne2 {[%clk 0:02:32.4]} 14... O-O {[%clk 0:02:02.6]} 15. Nd4 {[%clk
0:02:32.2]} 15... Qd7 {[%clk 0:02:01.6]} 16. b4 {[%clk 0:02:29.9]} 16... f6
{[%clk 0:01:59.9]} 17. Nxf5 {[%clk 0:02:13.7]} 17... Qxf5 {[%clk 0:01:59.5]} 18.
Bd4 {[%clk 0:02:13.7]} 18... b6 {[%clk 0:01:44]} 19. Rae1 {[%clk 0:02:03.7]}
19... Rad8 {[%clk 0:01:31.8]} 20. h3 {[%clk 0:02:01.6]} 20... c5 {[%clk
0:01:27.7]} 21. bxc5 {[%clk 0:02:00.8]} 21... bxc5 {[%clk 0:01:27.6]} 22. exf6
{[%clk 0:01:53.9]} 22... Bxf6 {[%clk 0:01:20.1]} 23. Bxc5 {[%clk 0:01:49.6]}
23... Rf7 {[%clk 0:01:20.1]} 24. c3 {[%clk 0:01:48.8]} 24... Rc7 {[%clk
0:01:13.6]} 25. Bd4 {[%clk 0:01:46.9]} 25... Rc4 {[%clk 0:01:09.2]} 26. Bxf6
{[%clk 0:01:43.2]} 26... Qxf6 {[%clk 0:01:09]} 27. Re5 {[%clk 0:01:38.9]} 27...
d4 {[%clk 0:00:55.3]} 28. Qa2 {[%clk 0:01:26.2]} 28... Qc6 {[%clk 0:00:48]} 29.
cxd4 {[%clk 0:01:21.2]} 29... Rxd4 {[%clk 0:00:47.8]} 30. Kh2 {[%clk 0:01:05.7]}
30... Kg7 {[%clk 0:00:45.5]} 31. Re7+ {[%clk 0:00:58.8]} 31... Kh6 {[%clk
0:00:45.3]} 32. Qe2 {[%clk 0:00:35]} 32... Qd6 {[%clk 0:00:17.6]} 33. Re6 {[%clk
0:00:32.8]} 33... Qc7 {[%clk 0:00:09]} 34. Re7 {[%clk 0:00:25.9]} 34... Qd6
{[%clk 0:00:08.4]} 35. Re6 {[%clk 0:00:15.1]} 35... Qc7 {[%clk 0:00:08.4]} 36.
Rf6 {[%clk 0:00:08.7]} 36... Rxf4 {[%clk 0:00:06.6]} 37. R1xf4 {[%clk
0:00:04.7]} 37... Rxf4 {[%clk 0:00:06.2]} 38. Qe3 {[%clk 0:00:04.8]} 38... Kg5
{[%clk 0:00:06.1]} 39. Rf8 {[%clk 0:00:04.2]} 1-0